fUST/lending_fUST_20250806
["ID","MTS","AMOUNT","RATE_DAILY","PERIOD"]
[377670008,1754482280642,-1000.0,0.000438,90]
[377670009,1754482280651,-467.93141667,0.00043835,120]
[377670010,1754482280661,-395.94505575,0.00043836,2]
[377670011,1754482280672,-500.0,0.00043873,30]
[377670012,1754482280682,-290.29394,0.000439,120]
[377670013,1754482280692,-151.0,0.000439,120]
[377670014,1754482280701,-800.0,0.00043928,30]
[377670015,1754482280712,-800.0,0.00043953,30]
[377670016,1754482280722,-600.0,0.00043965,30]
[377670017,1754482280732,-200.0,0.00043973,120]
[377670018,1754482280742,-3055.57,0.00044,7]
[377670019,1754482280752,-155.779602,0.00044,120]
[377670020,1754482280762,-800.0,0.00044051,30]
[377670021,1754482280772,-3245.33566551,0.00044163,43]
[377670022,1754482280782,-160.0,0.00044195,8]
[377670023,1754482280792,-500.0,0.00044207,30]
[377670024,1754482280802,-800.0,0.00044245,30]
[377670025,1754482280814,-800.0,0.00044268,30]
[377670026,1754482280825,-600.0,0.0004433,30]
[377670027,1754482280835,-3525.02,0.00044383,120]
[377670028,1754482280845,-600.0,0.00044521,30]
[377670029,1754482280855,-200.0,0.00044529,120]
[377670030,1754482280865,-500.0,0.00044545,30]
[377670031,1754482280877,-200.0,0.00044763,120]
[377670032,1754482280888,-800.0,0.00044868,30]
[377670033,1754482280898,-160.0,0.00044974,9]
[377670034,1754482280908,-200.0,0.00044986,120]
[377670035,1754482280918,-151.0,0.00045,120]
[377670036,1754482280929,-4999.850962,0.00045,120]
[377670037,1754482280939,-800.0,0.00045062,30]
[377670038,1754482280949,-500.0,0.00045078,30]
[377670039,1754482280958,-3245.33566551,0.00045133,45]
[377670040,1754482280969,-3525.02,0.00045205,120]
[377670041,1754482280979,-800.0,0.00045214,30]
[377670042,1754482280989,-157.627213,0.00045224,5]
[377670043,1754482280999,-156.480839,0.00045224,5]
[377670044,1754482281009,-158.852826,0.00045224,5]
[377670045,1754482281018,-800.0,0.00045305,30]
[377670046,1754482281029,-9159.8,0.000454,14]
[377670047,1754482281040,-500.0,0.00045429,30]
[377670048,1754482281051,-500.0,0.00045431,30]
[377670049,1754482281061,-500.0,0.00045465,30]
[377670050,1754482281071,-500.0,0.00045538,30]
[377670051,1754482281081,-500.0,0.00045563,30]
[377670052,1754482281091,-353.31934,0.000456,120]
[377670053,1754482281101,-160.0,0.00045753,10]
[377670054,1754482281111,-800.0,0.00045787,30]
[377670055,1754482281120,-500.0,0.000458,120]
[377670056,1754482281131,-723.36132239,0.00045966,30]
[377670057,1754482281141,-167.0,0.00046,120]
[377670058,1754482281150,-3525.02,0.00046027,120]
[377670059,1754482281160,-600.0,0.0004604,30]
[377670060,1754482281170,-3245.33566551,0.00046104,47]
[377670061,1754482281179,-180.768164,0.00046143,2]
[377670062,1754482281188,-200.0,0.00046154,120]
[377670063,1754482281198,-2099.308,0.00046196,2]
[377670064,1754482281209,-151.0,0.000462,120]
[377670065,1754482281218,-800.0,0.00046241,30]
[377670066,1754482281229,-408.0,0.00046276,2]
[377670067,1754482281238,-3082.5552082,0.000463,7]
[377670068,1754482281248,-600.0,0.0004632,30]
[377670069,1754482281259,-500.0,0.00046321,30]
[377670070,1754482281269,-200.0,0.00046414,120]
[377670071,1754482281278,-200.0,0.00046458,120]
[377670072,1754482281288,-1444.0,0.00046466,120]
[377670073,1754482281298,-160.0,0.00046532,11]
[377670074,1754482281308,-800.0,0.00046663,30]
[377670075,1754482281318,-3525.02,0.00046849,120]
[377670076,1754482281328,-822.18019923,0.00046891,30]
[377670077,1754482281338,-500.0,0.00046965,30]
[377670078,1754482281348,-500.0,0.00047061,30]
[377670079,1754482281358,-3245.33566551,0.00047075,49]
[377670080,1754482281368,-500.0,0.0004718,30]
[377670081,1754482281379,-277.342,0.00047219,79]
[377670082,1754482281389,-151.0,0.000473,120]
[377670083,1754482281400,-160.0,0.00047311,12]
[377670084,1754482281410,-3995.0,0.00047344,5]
[377670085,1754482281420,-600.0,0.00047423,30]
[377670086,1754482281430,-800.0,0.00047542,30]
[377670087,1754482281440,-353.31934,0.000476,120]
[377670088,1754482281450,-500.0,0.00047614,30]
[377670089,1754482281460,-600.0,0.00047656,30]
[377670090,1754482281470,-3525.02,0.00047671,120]
[377670091,1754482281480,-200.0,0.00047675,60]
[377670092,1754482281489,-200.0,0.00047675,60]
[377670093,1754482281499,-200.0,0.00047675,60]
[377670094,1754482281509,-200.0,0.00047675,60]
[377670095,1754482281519,-200.0,0.00047675,60]
[377670096,1754482281528,-200.0,0.00047675,60]
[377670097,1754482281537,-200.0,0.00047675,60]
[377670098,1754482281559,-200.0,0.00047675,60]
[377670099,1754482281569,-200.0,0.00047675,60]
[377670100,1754482281579,-200.0,0.00047675,60]
[377670101,1754482281589,-200.0,0.00047675,60]
[377670102,1754482281598,-200.0,0.00047675,60]
[377670103,1754482281607,-200.0,0.00047675,60]
[377670104,1754482281617,-200.0,0.00047675,60]
[377670105,1754482281627,-200.0,0.00047675,60]
[377670106,1754482281637,-200.0,0.00047675,60]
[377670107,1754482281648,-200.0,0.00047675,60]
[377670108,1754482281658,-364.0,0.00047675,60]
[377670109,1754482281667,-600.0,0.00047865,30]
[377670110,1754482281677,-600.0,0.00047985,30]
[377670111,1754482281686,-1000.0,0.00048,120]
[377670112,1754482281696,-1000.0,0.00048,120]
[377670113,1754482281705,-1000.0,0.00048,120]
[377670114,1754482281717,-900.0,0.00048,120]
[377670115,1754482281727,-9159.8,0.00048,14]
[377670116,1754482281737,-3245.33566551,0.00048046,51]
[377670117,1754482281748,-160.0,0.00048089,13]
[377670118,1754482281758,-426.8,0.00048188,120]
[377670119,1754482281768,-800.0,0.00048236,14]
[377670120,1754482281778,-1594.92004774,0.000483,120]
[377670121,1754482281788,-800.0,0.00048368,14]
[377670122,1754482281799,-500.0,0.00048379,30]
[377670123,1754482281809,-522.34373139,0.00048436,14]
[377670124,1754482281819,-800.0,0.00048476,14]
[377670125,1754482281828,-800.0,0.00048477,14]
[377670126,1754482281839,-3525.02,0.00048493,120]
[377670127,1754482281850,-151.0,0.000485,120]
[377670128,1754482281860,-600.0,0.00048516,30]
[377670129,1754482281871,-800.0,0.00048549,14]
[377670130,1754482281881,-500.0,0.00048555,30]
[377670131,1754482281890,-600.0,0.00048561,30]
[377670132,1754482281901,-600.0,0.00048596,30]
[377670133,1754482281911,-1530.82907064,0.00048599,30]
[377670134,1754482281921,-376.34,0.000486,15]
[377670135,1754482281933,-5050.77874884,0.00048741,114]
[377670136,1754482281942,-151.0,0.00048741,120]
[377670137,1754482281953,-640.169219,0.00048741,120]
[377670138,1754482281963,-640.169219,0.00048741,120]
[377670139,1754482281973,-195.961502,0.0004878,120]
[377670140,1754482281983,-1664.11043,0.0004878,21]
[377670141,1754482281993,-151.0,0.0004878,120]
[377670142,1754482282003,-151.0,0.0004878,30]
[377670143,1754482282013,-151.0,0.0004878,120]
[377670144,1754482282023,-1000.0,0.000488,21]
[377670145,1754482282033,-771.19481853,0.00048816,30]
[377670146,1754482282043,-1000.0,0.0004882,21]
[377670147,1754482282053,-1000.0,0.0004884,21]
[377670148,1754482282063,-1000.0,0.0004886,21]
[377670149,1754482282074,-160.0,0.00048868,14]
[377670150,1754482282084,-1000.0,0.0004888,21]
[377670151,1754482282094,-1000.0,0.000489,21]
[377670152,1754482282104,-500.0,0.00048901,30]
[377670153,1754482282114,-800.0,0.00048904,14]
[377670154,1754482282124,-800.0,0.00048913,14]
[377670155,1754482282134,-1000.0,0.0004892,21]
[377670156,1754482282144,-426.8,0.00048925,120]
[377670157,1754482282154,-1000.0,0.0004894,21]
[377670158,1754482282164,-200.0,0.00048951,120]
[377670159,1754482282174,-800.0,0.00048958,14]
[377670160,1754482282184,-1000.0,0.0004896,21]
[377670161,1754482282194,-800.0,0.00048966,14]
[377670162,1754482282204,-1000.0,0.0004898,21]
[377670163,1754482282214,-1135.685072,0.0004898,21]
[377670164,1754482282223,-800.0,0.00048994,14]
[377670165,1754482282233,-3000.0,0.00049,120]
[377670166,1754482282353,-309.06528796,0.00049,15]
[377670167,1754482282364,-1000.0,0.00049,21]
[377670168,1754482282375,-1000.0,0.00049,21]
[377670169,1754482282385,-150.0,0.00049,120]
[377670170,1754482282395,-150.38582,0.00049,2]
[377670171,1754482282405,-3245.33566551,0.00049017,54]
[377670172,1754482282415,-151.0,0.00049017,120]
[377670173,1754482282425,-187.614617,0.00049017,120]
[377670174,1754482282435,-151.0,0.00049017,120]
[377670175,1754482282445,-230.523874,0.00049017,120]
[377670176,1754482282455,-291.89466985,0.00049096,2]
[377670177,1754482282465,-167.84374992,0.00049136,30]
[377670178,1754482282476,-966.45,0.00049156,30]
[377670179,1754482282485,-681.0668677,0.00049255,30]
[377670180,1754482282496,-408.0,0.00049276,2]
[377670181,1754482282506,-1003.64606864,0.00049315,120]
[377670182,1754482282515,-3525.02,0.00049315,120]
[377670183,1754482282525,-454.26773,0.000496,120]
[377670184,1754482282535,-353.31934,0.000496,120]
[377670185,1754482282544,-151.0,0.000496,120]
[377670186,1754482282555,-160.0,0.00049647,15]
[377670187,1754482282565,-207.68524764,0.00049647,5]
[377670188,1754482282574,-426.8,0.00049661,120]
[377670189,1754482282584,-3245.33566551,0.00049988,56]
[377670190,1754482282594,-150.0,0.0005,2]
[377670191,1754482282604,-668.53,0.0005,30]
[377670192,1754482282613,-1431.60889063,0.0005,120]
[377670193,1754482282623,-312.16666667,0.0005,7]
[377670194,1754482282633,-3525.02,0.00050136,120]
[377670195,1754482282645,-200.0,0.00050202,120]
[377670196,1754482282655,-200.0,0.00050296,120]
[377670197,1754482282666,-151.0,0.00050296,120]
[377670198,1754482282676,-151.698702,0.00050296,120]
[377670199,1754482282688,-3888.54387131,0.00050347,28]
[377670200,1754482282698,-426.8,0.00050398,120]
[377670201,1754482282707,-1259.69325032,0.000505,120]
[377670202,1754482282719,-151.0,0.00050538,120]
[377670203,1754482282728,-500.0,0.00050602,30]
[377670204,1754482282738,-200.0,0.00050759,120]
[377670205,1754482282748,-151.0,0.000508,120]
[377670206,1754482282756,-200.0,0.00050936,120]
[377670207,1754482282766,-3525.02,0.00050958,120]
[377670208,1754482282776,-3245.33566551,0.00050958,58]
[377670209,1754482282785,-1525.43,0.00051,7]
[377670210,1754482282795,-426.8,0.00051135,120]
[377670211,1754482282805,-500.0,0.00051314,30]
[377670212,1754482282815,-200.0,0.00051339,120]
[377670213,1754482282825,-200.0,0.0005146,120]
[377670214,1754482282835,-500.0,0.00051561,31]
[377670215,1754482282845,-454.26777,0.000516,120]
[377670216,1754482282855,-353.31939,0.000516,120]
[377670217,1754482282864,-573.09850766,0.00051726,7]
[377670218,1754482282874,-3525.04,0.0005178,120]
[377670219,1754482282884,-200.0,0.00051849,120]
[377670220,1754482282893,-426.8,0.00051871,120]
[377670221,1754482282903,-151.0,0.000519,120]
[377670222,1754482282913,-3245.33566551,0.00051929,60]
[377670223,1754482282923,-200.0,0.0005199,120]
[377670224,1754482282933,-10510.75643948,0.00052,30]
[377670225,1754482282943,-500.0,0.00052054,120]
[377670226,1754482282952,-901.79,0.00052054,120]
[377670227,1754482282962,-500.0,0.00052054,120]
[377670228,1754482282972,-500.0,0.00052054,120]
[377670229,1754482282982,-200.0,0.00052119,120]
[377670230,1754482282992,-245.14697,0.000522,120]
[377670231,1754482283002,-200.0,0.00052273,90]
[377670232,1754482283012,-200.0,0.00052273,90]
[377670233,1754482283021,-200.0,0.00052273,90]
[377670234,1754482283031,-200.0,0.00052273,90]
[377670235,1754482283040,-200.0,0.00052273,90]
[377670236,1754482283050,-200.0,0.00052273,90]
[377670237,1754482283059,-200.0,0.00052273,90]
[377670238,1754482283068,-200.0,0.00052273,90]
[377670239,1754482283078,-200.0,0.00052273,90]
[377670240,1754482283087,-200.0,0.00052273,90]
[377670241,1754482283097,-200.0,0.00052273,90]
[377670242,1754482283107,-200.0,0.00052273,90]
[377670243,1754482283117,-200.0,0.00052273,90]
[377670244,1754482283127,-200.0,0.00052273,90]
[377670245,1754482283138,-200.0,0.00052273,90]
[377670246,1754482283147,-200.0,0.00052273,90]
[377670247,1754482283157,-200.0,0.00052273,90]
[377670248,1754482283166,-200.0,0.00052273,90]
[377670249,1754482283175,-200.0,0.00052273,90]
[377670250,1754482283185,-200.0,0.00052273,90]
[377670251,1754482283194,-200.0,0.00052273,90]
[377670252,1754482283203,-200.0,0.00052273,90]
[377670253,1754482283213,-200.0,0.00052273,90]
[377670254,1754482283222,-200.0,0.00052273,90]
[377670255,1754482283232,-200.0,0.00052273,90]
[377670256,1754482283242,-408.0,0.00052276,120]
[377670257,1754482283251,-500.0,0.00052328,120]
[377670258,1754482283260,-901.79,0.00052328,120]
[377670259,1754482283271,-500.0,0.00052328,120]
[377670260,1754482283281,-500.0,0.00052328,120]
[377670261,1754482283290,-500.0,0.0005252,32]
[377670262,1754482283300,-200.0,0.00052561,120]
[377670263,1754482283309,-500.0,0.00052602,120]
[377670264,1754482283318,-901.79,0.00052602,120]
[377670265,1754482283327,-500.0,0.00052602,120]
[377670266,1754482283337,-500.0,0.00052602,120]
[377670267,1754482283347,-277.656235,0.00052602,120]
[377670268,1754482283356,-277.656235,0.00052602,120]
[377670269,1754482283366,-151.0,0.00052602,120]
[377670270,1754482283376,-296.441138,0.00052602,120]
[377670271,1754482283385,-426.8,0.00052608,120]
[377670272,1754482283394,-180.768164,0.00052632,2]
[377670273,1754482283405,-600.0,0.000528,2]
[377670274,1754482283414,-500.0,0.00052876,120]
[377670275,1754482283423,-901.79,0.00052876,120]
[377670276,1754482283432,-500.0,0.00052876,120]
[377670277,1754482283441,-500.0,0.00052876,120]
[377670278,1754482283450,-3245.33566551,0.000529,62]
[377670279,1754482283460,-151.0,0.000531,120]
[377670280,1754482283469,-500.0,0.0005315,120]
[377670281,1754482283479,-901.79,0.0005315,120]
[377670282,1754482283488,-500.0,0.0005315,120]
[377670283,1754482283497,-500.0,0.0005315,120]
[377670284,1754482283506,-200.0,0.00053265,120]
[377670285,1754482283516,-3025.64414583,0.000533,120]
[377670286,1754482283525,-151.0,0.000533,120]
[377670287,1754482283534,-151.0,0.000533,120]
[377670288,1754482283543,-214.468186,0.000533,120]
[377670289,1754482283552,-214.468186,0.000533,120]
[377670290,1754482283562,-426.8,0.00053345,120]
[377670291,1754482283573,-600.0,0.0005335,2]
[377670292,1754482283582,-500.0,0.00053424,120]
[377670293,1754482283592,-901.79,0.00053424,120]
[377670294,1754482283601,-242.78,0.00053424,120]
[377670295,1754482283611,-242.78,0.00053424,120]
[377670296,1754482283621,-500.0,0.00053479,33]
[377670297,1754482283631,-500.0,0.00053698,120]
[377670298,1754482283643,-901.79,0.00053698,120]
[377670299,1754482283653,-600.0,0.000539,2]
[377670300,1754482283663,-310.62534252,0.00053972,120]
[377670301,1754482283672,-901.79,0.00053972,120]
[377670302,1754482283682,-680.31890535,0.00054,120]
[377670303,1754482283691,-500.0,0.00054015,30]
[377670304,1754482283701,-500.0,0.00054015,30]
[377670305,1754482283711,-426.8,0.00054081,120]
[377670306,1754482283722,-200.0,0.00054106,120]
[377670307,1754482283731,-151.0,0.000542,120]
[377670308,1754482283740,-200.0,0.00054217,120]
[377670309,1754482283750,-200.0,0.00054229,120]
[377670310,1754482283759,-901.79,0.00054246,120]
[377670311,1754482283769,-1444.0,0.00054356,120]
[377670312,1754482283778,-500.0,0.00054438,34]
[377670313,1754482283787,-600.0,0.0005445,2]
[377670314,1754482283796,-901.79,0.0005452,120]
[377670315,1754482283807,-901.79,0.00054794,120]
[377670316,1754482283816,-500.0,0.00054794,2]
[377670317,1754482283825,-500.86141247,0.00054794,2]
[377670318,1754482283835,-500.0,0.00054794,120]
[377670319,1754482283844,-500.0,0.00054794,120]
[377670320,1754482283854,-514.17365247,0.00054794,120]
[377670321,1754482283863,-500.0,0.00054794,7]
[377670322,1754482283872,-500.0,0.00054794,120]
[377670323,1754482283884,-500.0,0.00054794,120]
[377670324,1754482283894,-500.0,0.00054794,120]
[377670325,1754482283903,-500.0,0.00054794,120]
[377670326,1754482283912,-500.0,0.00054794,120]
[377670327,1754482283922,-500.0,0.00054794,120]
[377670328,1754482283931,-500.0,0.00054794,120]
[377670329,1754482283940,-500.0,0.00054794,120]
[377670330,1754482283950,-500.0,0.00054794,120]
[377670331,1754482283959,-500.0,0.00054794,120]
[377670332,1754482283969,-500.0,0.00054794,120]
[377670333,1754482283979,-500.0,0.00054794,120]
[377670334,1754482283988,-500.0,0.00054794,120]
[377670335,1754482283998,-500.0,0.00054794,120]
[377670336,1754482284007,-500.0,0.00054794,120]
[377670337,1754482284018,-543.17152541,0.00054794,120]
[377670338,1754482284027,-185.258165,0.00054794,120]
[377670339,1754482284036,-185.258165,0.00054794,120]
[377670340,1754482284046,-460.0,0.00054794,120]
[377670341,1754482284055,-300.0,0.00054794,120]
[377670342,1754482284064,-460.0,0.00054794,120]
[377670343,1754482284074,-505.2324907,0.00054794,120]
[377670344,1754482284083,-2146.45,0.00054794,120]
[377670345,1754482284093,-651.83,0.00054794,120]
[377670346,1754482284102,-651.83,0.00054794,120]
[377670347,1754482284111,-651.83,0.00054794,120]
[377670348,1754482284121,-2146.45,0.00054794,120]
[377670349,1754482284133,-651.83,0.00054794,120]
[377670350,1754482284142,-651.83,0.00054794,120]
[377670351,1754482284152,-651.83,0.00054794,120]
[377670352,1754482284161,-651.83,0.00054794,120]
[377670353,1754482284170,-651.83,0.00054794,120]
[377670354,1754482284180,-651.83,0.00054794,120]
[377670355,1754482284190,-2146.45,0.00054794,120]
[377670356,1754482284199,-651.83,0.00054794,120]
[377670357,1754482284209,-651.83,0.00054794,120]
[377670358,1754482284219,-651.83,0.00054794,120]
[377670359,1754482284228,-2146.45,0.00054794,120]
[377670360,1754482284339,-651.83,0.00054794,120]
[377670361,1754482284349,-2146.45,0.00054794,120]
[377670362,1754482284359,-651.83,0.00054794,120]
[377670363,1754482284368,-651.83,0.00054794,120]
[377670364,1754482284377,-2146.45,0.00054794,120]
[377670365,1754482284387,-651.83,0.00054794,120]
[377670366,1754482284397,-2146.45,0.00054794,120]
[377670367,1754482284406,-651.83,0.00054794,120]
[377670368,1754482284416,-2146.45,0.00054794,120]
[377670369,1754482284425,-651.83,0.00054794,120]
[377670370,1754482284435,-2146.45,0.00054794,120]
[377670371,1754482284445,-651.83,0.00054794,120]
[377670372,1754482284455,-651.83,0.00054794,120]
[377670373,1754482284469,-651.83,0.00054794,120]
[377670374,1754482284479,-2146.45,0.00054794,120]
[377670375,1754482284488,-651.83,0.00054794,120]
[377670376,1754482284497,-651.83,0.00054794,120]
[377670377,1754482284506,-652.05114172,0.00054794,120]
[377670378,1754482284516,-2146.45,0.00054794,120]
[377670379,1754482284526,-2146.45,0.00054794,120]
[377670380,1754482284535,-2146.45,0.00054794,120]
[377670381,1754482284545,-2146.45,0.00054794,120]
[377670382,1754482284555,-2146.45,0.00054794,120]
[377670383,1754482284564,-2146.45,0.00054794,120]
[377670384,1754482284575,-2146.45,0.00054794,120]
[377670385,1754482284584,-2146.45,0.00054794,120]
[377670386,1754482284594,-2146.45,0.00054794,120]
[377670387,1754482284604,-2146.45,0.00054794,120]
[377670388,1754482284614,-2146.45,0.00054794,120]
[377670389,1754482284623,-2146.45,0.00054794,120]
[377670390,1754482284635,-2146.45,0.00054794,120]
[377670391,1754482284646,-2146.45820364,0.00054794,120]
[377670392,1754482284655,-197.43823436,0.00054794,120]
[377670393,1754482284665,-500.0,0.00054794,120]
[377670394,1754482284675,-500.0,0.00054794,120]
[377670395,1754482284684,-500.0,0.00054794,120]
[377670396,1754482284693,-500.0,0.00054794,120]
[377670397,1754482284702,-500.0,0.00054794,120]
[377670398,1754482284713,-500.0,0.00054794,120]
[377670399,1754482284723,-500.0,0.00054794,120]
[377670400,1754482284732,-500.0,0.00054794,120]
[377670401,1754482284742,-500.0,0.00054794,120]
[377670402,1754482284752,-500.0,0.00054794,120]
[377670403,1754482284761,-500.0,0.00054794,120]
[377670404,1754482284771,-500.0,0.00054794,120]
[377670405,1754482284780,-500.0,0.00054794,120]
[377670406,1754482284790,-500.0,0.00054794,120]
[377670407,1754482284800,-554.84074174,0.00054794,120]
[377670408,1754482284809,-460.0,0.00054794,120]
[377670409,1754482284819,-500.0,0.00054794,120]
[377670410,1754482284828,-500.0,0.00054794,120]
[377670411,1754482284837,-500.0,0.00054794,120]
[377670412,1754482284847,-500.0,0.00054794,120]
[377670413,1754482284856,-500.0,0.00054794,120]
[377670414,1754482284866,-500.0,0.00054794,120]
[377670415,1754482284876,-500.0,0.00054794,120]
[377670416,1754482284886,-500.0,0.00054794,120]
[377670417,1754482284895,-500.0,0.00054794,120]
[377670418,1754482284905,-514.57983942,0.00054794,120]
[377670419,1754482284915,-549.81,0.00054794,120]
[377670420,1754482284924,-500.0,0.00054794,120]
[377670421,1754482284934,-501.18495861,0.00054794,120]
[377670422,1754482284944,-332.72865176,0.00054794,2]
[377670423,1754482284953,-426.8,0.00054818,120]
[377670424,1754482284963,-200.0,0.00054876,120]
[377670425,1754482284973,-1337.80058713,0.00055,120]
[377670426,1754482284982,-1251.01034039,0.00055,120]
[377670427,1754482284992,-546.00688776,0.00055,120]
[377670428,1754482285001,-214.0,0.00055,120]
[377670429,1754482285011,-1008.90251,0.00055,60]
[377670430,1754482285021,-600.0,0.00055,2]
[377670431,1754482285030,-200.0,0.00055028,120]
[377670432,1754482285040,-901.79,0.00055068,120]
[377670433,1754482285049,-500.0,0.00055068,7]
[377670434,1754482285059,-460.0,0.00055068,120]
[377670435,1754482285068,-300.0,0.00055068,120]
[377670436,1754482285077,-460.0,0.00055068,120]
[377670437,1754482285086,-151.0,0.00055068,120]
[377670438,1754482285095,-460.0,0.00055068,120]
[377670439,1754482285106,-549.81,0.00055068,120]
[377670440,1754482285115,-408.0,0.00055276,120]
[377670441,1754482285125,-901.79,0.00055342,120]
[377670442,1754482285135,-500.0,0.00055342,7]
[377670443,1754482285144,-460.0,0.00055342,120]
[377670444,1754482285154,-300.0,0.00055342,120]
[377670445,1754482285164,-460.0,0.00055342,120]
[377670446,1754482285174,-460.0,0.00055342,120]
[377670447,1754482285183,-549.81,0.00055342,120]
[377670448,1754482285193,-200.0,0.00055359,120]
[377670449,1754482285202,-500.0,0.00055397,120]
[377670450,1754482285212,-151.0,0.000554,120]
[377670451,1754482285221,-833.97956797,0.0005555,2]
[377670452,1754482285231,-426.8,0.00055555,120]
[377670453,1754482285241,-901.79,0.00055616,120]
[377670454,1754482285251,-500.0,0.00055616,7]
[377670455,1754482285260,-460.0,0.00055616,120]
[377670456,1754482285270,-300.0,0.00055616,120]
[377670457,1754482285280,-460.0,0.00055616,120]
[377670458,1754482285289,-460.0,0.00055616,120]
[377670459,1754482285299,-549.81,0.00055616,120]
[377670460,1754482285308,-2546.31,0.000558,14]
[377670461,1754482285318,-901.79,0.0005589,120]
[377670462,1754482285327,-500.0,0.0005589,7]
[377670463,1754482285337,-460.0,0.0005589,120]
[377670464,1754482285347,-300.0,0.0005589,120]
[377670465,1754482285356,-159.9936,0.0005589,120]
[377670466,1754482285366,-460.0,0.0005589,120]
[377670467,1754482285376,-549.81,0.0005589,120]
[377670468,1754482285385,-1000.0,0.00056,120]
[377670469,1754482285395,-34694.4381877,0.00056,120]
[377670470,1754482285404,-724.0,0.00056,120]
[377670471,1754482285414,-901.79,0.00056164,120]
[377670472,1754482285423,-500.0,0.00056164,7]
[377670473,1754482285432,-460.0,0.00056164,120]
[377670474,1754482285441,-300.0,0.00056164,120]
[377670475,1754482285465,-460.0,0.00056164,120]
[377670476,1754482285475,-549.81,0.00056164,120]
[377670477,1754482285484,-426.8,0.00056291,120]
[377670478,1754482285493,-500.0,0.00056356,120]
[377670479,1754482285502,-250.0,0.0005637,3]
[377670480,1754482285511,-901.79,0.00056438,120]
[377670481,1754482285521,-500.0,0.00056438,7]
[377670482,1754482285530,-500.13436557,0.00056438,120]
[377670483,1754482285539,-300.0,0.00056438,120]
[377670484,1754482285549,-460.0,0.00056438,120]
[377670485,1754482285558,-549.81,0.00056438,120]
[377670486,1754482285567,-151.0,0.000565,120]
[377670487,1754482285576,-2200.0,0.0005652,120]
[377670488,1754482285586,-901.79,0.00056712,120]
[377670489,1754482285595,-300.0,0.00056712,120]
[377670490,1754482285604,-460.0,0.00056712,120]
[377670491,1754482285613,-549.81,0.00056712,120]
[377670492,1754482285623,-500.0,0.00056858,120]
[377670493,1754482285634,-500.0,0.00056858,120]
[377670494,1754482285647,-151.0,0.000569,120]
[377670495,1754482285657,-18964.0,0.000569,120]
[377670496,1754482285666,-1323.55,0.000569,120]
[377670497,1754482285675,-1548.0,0.00056949,76]
[377670498,1754482285686,-901.79,0.00056986,120]
[377670499,1754482285695,-300.0,0.00056986,120]
[377670500,1754482285704,-460.0,0.00056986,120]
[377670501,1754482285714,-549.81,0.00056986,120]
[377670502,1754482285724,-796.20203798,0.00056986,30]
[377670503,1754482285734,-1892.42293618,0.00057,120]
[377670504,1754482285743,-426.8,0.00057028,120]
[377670505,1754482285752,-200.0,0.00057035,120]
[377670506,1754482285762,-2200.0,0.00057068,120]
[377670507,1754482285772,-901.79,0.0005726,120]